[Event "Titled Tuesday Blitz August 15 Late 2023"]
[White "Hartikainen, Jarmo"]
[Black "Harriott, Tyrell"]
[WhiteFideId "503134"]
[BlackFideId "2086484"]
[WhiteElo "2106"]
[BlackElo "2419"]
[Result "0-1"]
[Round "2"]
[TimeControl "180+1"]
[Date "2023.08.15"]
[WhiteClock "0:00:04"]
[BlackClock "0:00:33"]
[Board "173"]

1. e4 {[%clk 0:03:00]}  d5 {[%clk 0:02:57]} 2. exd5 {[%clk 0:03:00]}  Nf6 {[%clk 0:02:57]} 3. d4 {[%clk 0:03:00]}  Qxd5 {[%clk 0:02:57]} 4. c4 {[%clk 0:03:00]}  Qe4+ {[%clk 0:02:57]} 5. Be3 {[%clk 0:02:59]}  e5 {[%clk 0:02:58]} 6. Nc3 {[%clk 0:02:59]}  Bb4 {[%clk 0:02:57]} 7. Nf3 {[%clk 0:02:57]}  exd4 {[%clk 0:02:44]} 8. Qxd4 {[%clk 0:02:50]}  Nc6 {[%clk 0:02:42]} 9. Qxe4+ {[%clk 0:02:30]}  Nxe4 {[%clk 0:02:42]} 10. Rc1 {[%clk 0:02:22]}  Be6 {[%clk 0:02:33]} 11. Bd3 {[%clk 0:02:13]}  Nxc3 {[%clk 0:02:26]} 12. bxc3 {[%clk 0:02:12]}  O-O-O {[%clk 0:02:15]} 13. cxb4 {[%clk 0:01:56]}  Rxd3 {[%clk 0:02:15]} 14. b5 {[%clk 0:01:25]}  Nb4 {[%clk 0:02:10]} 15. a4 {[%clk 0:01:09]}  Ra3 {[%clk 0:02:07]} 16. O-O {[%clk 0:00:55]}  Rxa4 {[%clk 0:02:05]} 17. Ra1 {[%clk 0:00:37]}  Na2 {[%clk 0:02:03]} 18. Nd2 {[%clk 0:00:27]}  Rd8 {[%clk 0:01:55]} 19. h3 {[%clk 0:00:26]}  Rd3 {[%clk 0:01:53]} 20. Rfb1 {[%clk 0:00:24]}  Rda3 {[%clk 0:01:52]} 21. g4 {[%clk 0:00:18]}  g6 {[%clk 0:01:42]} 22. Kg2 {[%clk 0:00:17]}  f6 {[%clk 0:01:40]} 23. c5 {[%clk 0:00:16]}  Bd5+ {[%clk 0:01:40]} 24. f3 {[%clk 0:00:16]}  Rxe3 {[%clk 0:01:39]} 25. Rb2 {[%clk 0:00:15]}  Rea3 {[%clk 0:01:23]} 26. b6 {[%clk 0:00:13]}  a6 {[%clk 0:01:16]} 27. bxc7 {[%clk 0:00:12]}  Kxc7 {[%clk 0:01:15]} 28. Rd1 {[%clk 0:00:13]}  Bc6 {[%clk 0:01:13]} 29. Re1 {[%clk 0:00:12]}  Kd7 {[%clk 0:01:11]} 30. Ne4 {[%clk 0:00:11]}  f5 {[%clk 0:01:04]} 31. Nf6+ {[%clk 0:00:11]}  Kd8 {[%clk 0:01:03]} 32. Nxh7 {[%clk 0:00:09]}  Rxf3 {[%clk 0:01:00]} 33. Kh2 {[%clk 0:00:05]}  Raa3 {[%clk 0:00:58]} 34. Rd2+ {[%clk 0:00:05]}  Kc7 {[%clk 0:00:57]} 35. Re7+ {[%clk 0:00:05]}  Kb8 {[%clk 0:00:57]} 36. Rd8+ {[%clk 0:00:06]}  Ka7 {[%clk 0:00:56]} 37. Re6 {[%clk 0:00:04]}  Rxh3+ {[%clk 0:00:54]} 38. Kg1 {[%clk 0:00:03]}  Rag3+ {[%clk 0:00:34]} 39. Kf2 {[%clk 0:00:04]}  Rg2+ {[%clk 0:00:34]} 40. Kf1 {[%clk 0:00:04]}  Rh1# {[%clk 0:00:33]} 0-1


[Site "https://www.chess.com"]

[Event "Titled Tuesday Blitz August 15 Late 2023"]
[White "Szyszylo, Rafal"]
[Black "Milovic, Aleksandra"]
[WhiteFideId "1109626"]
[BlackFideId "933988"]
[WhiteElo "2417"]
[BlackElo "2099"]
[Result "1-0"]
[Round "2"]
[TimeControl "180+1"]
[Date "2023.08.15"]
[WhiteClock "0:01:12"]
[BlackClock "0:00:45"]
[Board "174"]

1. e4 {[%clk 0:02:59]}  e6 {[%clk 0:02:59]} 2. d4 {[%clk 0:02:59]}  d5 {[%clk 0:02:58]} 3. e5 {[%clk 0:02:58]}  c5 {[%clk 0:02:57]} 4. c3 {[%clk 0:02:59]}  Nc6 {[%clk 0:02:56]} 5. Nf3 {[%clk 0:02:59]}  Qb6 {[%clk 0:02:55]} 6. Bd3 {[%clk 0:02:59]}  cxd4 {[%clk 0:02:53]} 7. O-O {[%clk 0:02:59]}  Bd7 {[%clk 0:02:49]} 8. Re1 {[%clk 0:02:59]}  Be7 {[%clk 0:02:38]} 9. Nbd2 {[%clk 0:02:53]}  dxc3 {[%clk 0:02:35]} 10. bxc3 {[%clk 0:02:53]}  Nh6 {[%clk 0:02:30]} 11. Rb1 {[%clk 0:02:51]}  Qc7 {[%clk 0:02:30]} 12. Nb3 {[%clk 0:02:33]}  Nf5 {[%clk 0:02:12]} 13. Nbd4 {[%clk 0:02:09]}  Nh4 {[%clk 0:01:57]} 14. Nxh4 {[%clk 0:02:04]}  Bxh4 {[%clk 0:01:57]} 15. Nb5 {[%clk 0:02:04]}  Qb8 {[%clk 0:01:51]} 16. Nd6+ {[%clk 0:02:02]}  Kf8 {[%clk 0:01:49]} 17. Rxb7 {[%clk 0:02:01]}  Qd8 {[%clk 0:01:45]} 18. Ba3 {[%clk 0:01:47]}  Be7 {[%clk 0:01:40]} 19. Qf3 {[%clk 0:01:36]}  Bxd6 {[%clk 0:01:09]} 20. Bxd6+ {[%clk 0:01:33]}  Kg8 {[%clk 0:01:08]} 21. Reb1 {[%clk 0:01:19]}  Na5 {[%clk 0:01:03]} 22. Bc7 {[%clk 0:01:13]}  Qxc7 {[%clk 0:00:45]} 23. Rxc7 {[%clk 0:01:12]} 1-0


[Site "https://www.chess.com"]

[Event "Titled Tuesday Blitz August 15 Late 2023"]
[White "Andrews, Todd"]
[Black "Phillips, Rene"]
[WhiteFideId "2012456"]
[BlackFideId "2056275"]
[WhiteElo "2408"]
[BlackElo "2078"]
[Result "0-1"]
[Round "2"]
[TimeControl "180+1"]
[Date "2023.08.15"]
[WhiteClock "0:00:26"]
[BlackClock "0:00:14"]
[Board "176"]

1. e4 {[%clk 0:03:00]}  Nc6 {[%clk 0:02:55]} 2. d4 {[%clk 0:03:00]}  d5 {[%clk 0:02:54]} 3. e5 {[%clk 0:03:00]}  a6 {[%clk 0:02:54]} 4. c3 {[%clk 0:02:59]}  f6 {[%clk 0:02:54]} 5. Bd3 {[%clk 0:02:57]}  fxe5 {[%clk 0:02:52]} 6. Qh5+ {[%clk 0:02:45]}  g6 {[%clk 0:02:52]} 7. Bxg6+ {[%clk 0:02:45]}  hxg6 {[%clk 0:02:52]} 8. Qxh8 {[%clk 0:02:45]}  Be6 {[%clk 0:02:52]} 9. Nf3 {[%clk 0:02:40]}  Qd7 {[%clk 0:02:51]} 10. dxe5 {[%clk 0:02:34]}  O-O-O {[%clk 0:02:50]} 11. Qh4 {[%clk 0:02:34]}  Bg7 {[%clk 0:02:48]} 12. Bf4 {[%clk 0:02:31]}  d4 {[%clk 0:02:41]} 13. Nbd2 {[%clk 0:02:29]}  dxc3 {[%clk 0:02:38]} 14. bxc3 {[%clk 0:02:30]}  Nxe5 {[%clk 0:02:35]} 15. O-O {[%clk 0:02:19]}  Bf6 {[%clk 0:02:21]} 16. Qg3 {[%clk 0:02:16]}  Nd3 {[%clk 0:02:11]} 17. Be3 {[%clk 0:02:08]}  Bf5 {[%clk 0:02:06]} 18. Nd4 {[%clk 0:02:03]}  Be5 {[%clk 0:01:44]} 19. f4 {[%clk 0:02:01]}  Bf6 {[%clk 0:01:37]} 20. Nc4 {[%clk 0:01:49]}  Nc5 {[%clk 0:01:29]} 21. Rfd1 {[%clk 0:01:27]}  Ne4 {[%clk 0:01:26]} 22. Qe1 {[%clk 0:01:26]}  Qa4 {[%clk 0:00:59]} 23. Ne5 {[%clk 0:01:18]}  Nh6 {[%clk 0:00:47]} 24. h3 {[%clk 0:01:08]}  Nd6 {[%clk 0:00:33]} 25. Nxf5 {[%clk 0:01:02]}  Nhxf5 {[%clk 0:00:32]} 26. Bf2 {[%clk 0:01:01]}  Qxf4 {[%clk 0:00:30]} 27. Nd3 {[%clk 0:00:48]}  Qc4 {[%clk 0:00:23]} 28. Rab1 {[%clk 0:00:46]}  Bxc3 {[%clk 0:00:20]} 29. Qe2 {[%clk 0:00:37]}  Bd4 {[%clk 0:00:20]} 30. Rbc1 {[%clk 0:00:29]}  Bxf2+ {[%clk 0:00:18]} 31. Qxf2 {[%clk 0:00:30]}  Qd4 {[%clk 0:00:17]} 32. Qxd4 {[%clk 0:00:30]}  Nxd4 {[%clk 0:00:17]} 33. Nc5 {[%clk 0:00:30]}  Ne2+ {[%clk 0:00:17]} 34. Kf2 {[%clk 0:00:30]}  Nxc1 {[%clk 0:00:17]} 35. Rxc1 {[%clk 0:00:31]}  Rf8+ {[%clk 0:00:13]} 36. Ke2 {[%clk 0:00:29]}  Nb5 {[%clk 0:00:09]} 37. Ne6 {[%clk 0:00:27]}  Rf6 {[%clk 0:00:07]} 38. Ng5 {[%clk 0:00:26]}  Nd4+ {[%clk 0:00:06]} 39. Kd3 {[%clk 0:00:26]}  Nc6 {[%clk 0:00:07]} 40. Rc2 {[%clk 0:00:24]}  Nb4+ {[%clk 0:00:05]} 41. Kc3 {[%clk 0:00:23]}  Nxc2 {[%clk 0:00:06]} 42. Kxc2 {[%clk 0:00:24]}  Rf2+ {[%clk 0:00:06]} 43. Kb3 {[%clk 0:00:23]}  Rxg2 {[%clk 0:00:07]} 44. Ne6 {[%clk 0:00:23]}  Rg3+ {[%clk 0:00:08]} 45. Kc4 {[%clk 0:00:22]}  Rxh3 {[%clk 0:00:09]} 46. Nd4 {[%clk 0:00:22]}  Rh4 {[%clk 0:00:09]} 47. a4 {[%clk 0:00:21]}  Rxd4+ {[%clk 0:00:09]} 48. Kxd4 {[%clk 0:00:21]}  Kd7 {[%clk 0:00:10]} 49. Kd5 {[%clk 0:00:22]}  c6+ {[%clk 0:00:10]} 50. Kc5 {[%clk 0:00:21]}  g5 {[%clk 0:00:10]} 51. Kb6 {[%clk 0:00:21]}  g4 {[%clk 0:00:11]} 52. Kxb7 {[%clk 0:00:21]}  c5 {[%clk 0:00:11]} 53. Kxa6 {[%clk 0:00:22]}  c4 {[%clk 0:00:12]} 54. Kb7 {[%clk 0:00:22]}  c3 {[%clk 0:00:12]} 55. a5 {[%clk 0:00:23]}  c2 {[%clk 0:00:13]} 56. a6 {[%clk 0:00:24]}  c1=Q {[%clk 0:00:14]} 57. a7 {[%clk 0:00:25]}  Qb1+ {[%clk 0:00:14]} 58. Ka6 {[%clk 0:00:24]}  Qa1+ {[%clk 0:00:12]} 59. Kb7 {[%clk 0:00:24]}  Qxa7+ {[%clk 0:00:13]} 60. Kxa7 {[%clk 0:00:25]}  g3 {[%clk 0:00:13]} 61. Kb6 {[%clk 0:00:26]}  g2 {[%clk 0:00:14]} 62. Kc5 {[%clk 0:00:27]}  g1=Q+ {[%clk 0:00:14]} 63. Kd5 {[%clk 0:00:26]}  Qb6 {[%clk 0:00:14]} 0-1


[Site "https://www.chess.com"]

[Event "Titled Tuesday Blitz August 15 Late 2023"]
[White "Balla, Tamas-Kristof"]
[Black "dorpato"]
[WhiteFideId "1208497"]
[WhiteElo "2404"]
[BlackElo "2065"]
[Result "1-0"]
[Round "2"]
[TimeControl "180+1"]
[Date "2023.08.15"]
[WhiteClock "0:01:39"]
[BlackClock "0:00:10"]
[Board "178"]

1. e4 {[%clk 0:03:00]}  c5 {[%clk 0:02:53]} 2. c3 {[%clk 0:02:58]}  Nf6 {[%clk 0:02:52]} 3. e5 {[%clk 0:02:59]}  Nd5 {[%clk 0:02:52]} 4. d4 {[%clk 0:02:59]}  cxd4 {[%clk 0:02:53]} 5. Nf3 {[%clk 0:03:00]}  Nc6 {[%clk 0:02:51]} 6. cxd4 {[%clk 0:03:01]}  d6 {[%clk 0:02:51]} 7. Bc4 {[%clk 0:03:01]}  Nb6 {[%clk 0:02:48]} 8. Bb5 {[%clk 0:03:01]}  dxe5 {[%clk 0:02:43]} 9. Nxe5 {[%clk 0:03:00]}  Bd7 {[%clk 0:02:43]} 10. Nxd7 {[%clk 0:02:59]}  Qxd7 {[%clk 0:02:39]} 11. Nc3 {[%clk 0:02:59]}  a6 {[%clk 0:02:38]} 12. Bxc6 {[%clk 0:02:53]}  Qxc6 {[%clk 0:02:35]} 13. O-O {[%clk 0:02:46]}  e6 {[%clk 0:02:33]} 14. Qg4 {[%clk 0:02:46]}  g6 {[%clk 0:02:27]} 15. d5 {[%clk 0:02:11]}  Nxd5 {[%clk 0:02:19]} 16. Nxd5 {[%clk 0:02:11]}  Qxd5 {[%clk 0:02:18]} 17. Rd1 {[%clk 0:02:11]}  Qc6 {[%clk 0:01:54]} 18. Qd4 {[%clk 0:02:10]}  Rg8 {[%clk 0:01:40]} 19. Bg5 {[%clk 0:02:10]}  Be7 {[%clk 0:01:32]} 20. Rac1 {[%clk 0:02:09]}  Qd5 {[%clk 0:01:10]} 21. Qxd5 {[%clk 0:01:56]}  exd5 {[%clk 0:01:08]} 22. Re1 {[%clk 0:01:56]}  Kf8 {[%clk 0:00:56]} 23. Bh6+ {[%clk 0:01:53]}  Ke8 {[%clk 0:00:47]} 24. Rc7 {[%clk 0:01:53]}  Kd8 {[%clk 0:00:21]} 25. Rexe7 {[%clk 0:01:51]}  b5 {[%clk 0:00:18]} 26. Bg5 {[%clk 0:01:39]}  Rb8 {[%clk 0:00:10]} 27. Rxf7+ {[%clk 0:01:40]}  Ke8 {[%clk 0:00:10]} 28. Rce7+ {[%clk 0:01:38]}  Kd8 {[%clk 0:00:10]} 29. Rb7+ {[%clk 0:01:39]}  Kc8 {[%clk 0:00:10]} 30. Rfc7# {[%clk 0:01:39]} 1-0


[Site "https://www.chess.com"]

[Event "Titled Tuesday Blitz August 15 Late 2023"]
[White "Verony64"]
[Black "KorolDimitriy75"]
[WhiteElo "2064"]
[BlackElo "2404"]
[Result "0-1"]
[Round "2"]
[TimeControl "180+1"]
[Date "2023.08.15"]
[WhiteClock "0:00:33"]
[BlackClock "0:00:03"]
[Board "179"]

1. d4 {[%clk 0:03:00]}  Nf6 {[%clk 0:02:59]} 2. c4 {[%clk 0:03:00]}  c5 {[%clk 0:02:59]} 3. d5 {[%clk 0:02:59]}  b5 {[%clk 0:02:59]} 4. cxb5 {[%clk 0:02:57]}  a6 {[%clk 0:02:59]} 5. Nc3 {[%clk 0:02:57]}  axb5 {[%clk 0:02:59]} 6. Nxb5 {[%clk 0:02:55]}  Ba6 {[%clk 0:02:58]} 7. Nc3 {[%clk 0:02:55]}  d6 {[%clk 0:02:57]} 8. g3 {[%clk 0:02:55]}  g6 {[%clk 0:02:57]} 9. Bg2 {[%clk 0:02:56]}  Bg7 {[%clk 0:02:58]} 10. Nf3 {[%clk 0:02:56]}  O-O {[%clk 0:02:58]} 11. O-O {[%clk 0:02:57]}  Nbd7 {[%clk 0:02:59]} 12. Re1 {[%clk 0:02:57]}  Qa5 {[%clk 0:02:58]} 13. e4 {[%clk 0:02:57]}  Ng4 {[%clk 0:02:58]} 14. h3 {[%clk 0:02:55]}  Nge5 {[%clk 0:02:58]} 15. Nxe5 {[%clk 0:02:54]}  Nxe5 {[%clk 0:02:59]} 16. f4 {[%clk 0:02:50]}  Nd3 {[%clk 0:02:33]} 17. Re3 {[%clk 0:02:25]}  Bd4 {[%clk 0:02:25]} 18. Kh2 {[%clk 0:02:25]}  Nxb2 {[%clk 0:01:54]} 19. Bxb2 {[%clk 0:02:17]}  Bxe3 {[%clk 0:01:54]} 20. Qc2 {[%clk 0:02:11]}  Rfb8 {[%clk 0:01:45]} 21. e5 {[%clk 0:01:57]}  Bd4 {[%clk 0:01:40]} 22. Rc1 {[%clk 0:01:51]}  Bc4 {[%clk 0:01:00]} 23. exd6 {[%clk 0:01:36]}  exd6 {[%clk 0:00:59]} 24. Ba1 {[%clk 0:01:26]}  Bxc3 {[%clk 0:00:41]} 25. Bxc3 {[%clk 0:01:24]}  Qxa2 {[%clk 0:00:39]} 26. Qd1 {[%clk 0:01:11]}  Qe2 {[%clk 0:00:34]} 27. Qg1 {[%clk 0:01:06]}  Ra2 {[%clk 0:00:32]} 28. Re1 {[%clk 0:01:05]}  Qc2 {[%clk 0:00:25]} 29. Ba1 {[%clk 0:00:59]}  Bxd5 {[%clk 0:00:25]} 30. h4 {[%clk 0:00:53]}  Qxg2+ {[%clk 0:00:24]} 31. Qxg2 {[%clk 0:00:52]}  Rxg2+ {[%clk 0:00:21]} 32. Kh3 {[%clk 0:00:53]}  Rd2 {[%clk 0:00:19]} 33. f5 {[%clk 0:00:51]}  Rd3 {[%clk 0:00:17]} 34. fxg6 {[%clk 0:00:50]}  hxg6 {[%clk 0:00:17]} 35. Kg4 {[%clk 0:00:50]}  Be6+ {[%clk 0:00:17]} 36. Kf4 {[%clk 0:00:48]}  Rb4+ {[%clk 0:00:15]} 37. Re4 {[%clk 0:00:48]}  Rxe4+ {[%clk 0:00:14]} 38. Kxe4 {[%clk 0:00:49]}  Rxg3 {[%clk 0:00:14]} 39. Bf6 {[%clk 0:00:47]}  Rg4+ {[%clk 0:00:13]} 40. Kd3 {[%clk 0:00:47]}  d5 {[%clk 0:00:13]} 41. Kc3 {[%clk 0:00:47]}  d4+ {[%clk 0:00:13]} 42. Kd3 {[%clk 0:00:47]}  c4+ {[%clk 0:00:12]} 43. Kd2 {[%clk 0:00:47]}  c3+ {[%clk 0:00:12]} 44. Kd3 {[%clk 0:00:46]}  Bf5+ {[%clk 0:00:12]} 45. Ke2 {[%clk 0:00:44]}  d3+ {[%clk 0:00:11]} 46. Ke3 {[%clk 0:00:43]}  d2 {[%clk 0:00:11]} 47. Ke2 {[%clk 0:00:41]}  Rg2+ {[%clk 0:00:11]} 48. Kf3 {[%clk 0:00:39]}  Rg1 {[%clk 0:00:08]} 49. Bxc3 {[%clk 0:00:35]}  d1=Q+ {[%clk 0:00:09]} 50. Kf4 {[%clk 0:00:36]}  Rg4+ {[%clk 0:00:06]} 51. Ke3 {[%clk 0:00:35]}  Qd3+ {[%clk 0:00:06]} 52. Kf2 {[%clk 0:00:35]}  Be4 {[%clk 0:00:05]} 53. Bd4 {[%clk 0:00:33]}  Rg2+ {[%clk 0:00:03]} 54. Ke1 {[%clk 0:00:33]}  Qe2# {[%clk 0:00:03]} 0-1


[Site "https://www.chess.com"]

[Event "Titled Tuesday Blitz August 15 Late 2023"]
[White "Joubert, Dantelle"]
[Black "Todorovic, Bojan"]
[WhiteFideId "14310813"]
[BlackFideId "917087"]
[WhiteElo "2062"]
[BlackElo "2403"]
[Result "0-1"]
[Round "2"]
[TimeControl "180+1"]
[Date "2023.08.15"]
[WhiteClock "0:00:00"]
[BlackClock "0:01:07"]
[Board "180"]

1. e4 {[%clk 0:03:00]}  g6 {[%clk 0:02:59]} 2. d4 {[%clk 0:03:00]}  Bg7 {[%clk 0:02:58]} 3. Nc3 {[%clk 0:02:56]}  d6 {[%clk 0:02:58]} 4. Be3 {[%clk 0:02:55]}  a6 {[%clk 0:02:57]} 5. Qd2 {[%clk 0:02:53]}  Nd7 {[%clk 0:02:57]} 6. f3 {[%clk 0:02:50]}  b5 {[%clk 0:02:55]} 7. O-O-O {[%clk 0:02:50]}  Bb7 {[%clk 0:02:52]} 8. Kb1 {[%clk 0:02:47]}  e6 {[%clk 0:02:36]} 9. h4 {[%clk 0:02:35]}  h5 {[%clk 0:02:35]} 10. g4 {[%clk 0:02:32]}  Ngf6 {[%clk 0:02:30]} 11. Bg5 {[%clk 0:02:11]}  Qb8 {[%clk 0:02:29]} 12. e5 {[%clk 0:01:50]}  Nd5 {[%clk 0:02:25]} 13. Nxd5 {[%clk 0:01:40]}  Bxd5 {[%clk 0:02:24]} 14. exd6 {[%clk 0:01:25]}  cxd6 {[%clk 0:02:24]} 15. gxh5 {[%clk 0:01:25]}  Rxh5 {[%clk 0:02:23]} 16. Rh2 {[%clk 0:01:09]}  Qb6 {[%clk 0:02:13]} 17. Be2 {[%clk 0:01:01]}  Rc8 {[%clk 0:02:05]} 18. Nh3 {[%clk 0:01:00]}  Rh8 {[%clk 0:01:55]} 19. Nf4 {[%clk 0:00:58]}  Bc4 {[%clk 0:01:55]} 20. h5 {[%clk 0:00:53]}  Bxe2 {[%clk 0:01:41]} 21. Qxe2 {[%clk 0:00:52]}  Nf8 {[%clk 0:01:24]} 22. hxg6 {[%clk 0:00:43]}  Rxh2 {[%clk 0:01:20]} 23. gxf7+ {[%clk 0:00:38]}  Kxf7 {[%clk 0:01:20]} 24. Qxh2 {[%clk 0:00:38]}  Qc6 {[%clk 0:01:20]} 25. d5 {[%clk 0:00:20]}  exd5 {[%clk 0:01:18]} 26. Rxd5 {[%clk 0:00:18]}  Qc4 {[%clk 0:01:12]} 27. b3 {[%clk 0:00:12]}  Qc3 {[%clk 0:01:09]} 28. Qh5+ {[%clk 0:00:04]}  Kg8 {[%clk 0:01:09]} 29. Bf6 {[%clk 0:00:00]}  Qxf6 {[%clk 0:01:07]} 0-1


[Site "https://www.chess.com"]

[Event "Titled Tuesday Blitz August 15 Late 2023"]
[White "Wafa, Shrook"]
[Black "Danishcrown"]
[WhiteFideId "10609970"]
[WhiteElo "2403"]
[BlackElo "2043"]
[Result "1-0"]
[Round "2"]
[TimeControl "180+1"]
[Date "2023.08.15"]
[WhiteClock "0:01:47"]
[BlackClock "0:00:00"]
[Board "181"]

1. e4 {[%clk 0:03:00]}  c6 {[%clk 0:02:55]} 2. d4 {[%clk 0:02:59]}  d5 {[%clk 0:02:55]} 3. f3 {[%clk 0:03:00]}  dxe4 {[%clk 0:02:54]} 4. fxe4 {[%clk 0:03:00]}  e5 {[%clk 0:02:54]} 5. Nf3 {[%clk 0:03:00]}  exd4 {[%clk 0:02:54]} 6. Bc4 {[%clk 0:03:01]}  Nf6 {[%clk 0:02:52]} 7. O-O {[%clk 0:03:00]}  Bc5 {[%clk 0:02:40]} 8. Bg5 {[%clk 0:02:55]}  h6 {[%clk 0:02:30]} 9. Bh4 {[%clk 0:02:49]}  g5 {[%clk 0:02:25]} 10. Bf2 {[%clk 0:02:39]}  Bg4 {[%clk 0:02:04]} 11. e5 {[%clk 0:02:37]}  Nd5 {[%clk 0:02:04]} 12. Bxd4 {[%clk 0:02:35]}  Qb6 {[%clk 0:01:53]} 13. Bxc5 {[%clk 0:02:30]}  Qxc5+ {[%clk 0:01:53]} 14. Qd4 {[%clk 0:02:28]}  Nd7 {[%clk 0:01:32]} 15. Qxc5 {[%clk 0:02:22]}  Nxc5 {[%clk 0:01:32]} 16. Nbd2 {[%clk 0:02:22]}  Nf4 {[%clk 0:01:20]} 17. b4 {[%clk 0:02:15]}  Nce6 {[%clk 0:01:14]} 18. Ne4 {[%clk 0:02:15]}  Ke7 {[%clk 0:00:59]} 19. Bxe6 {[%clk 0:02:01]}  Bxe6 {[%clk 0:00:56]} 20. Nc5 {[%clk 0:02:00]}  b6 {[%clk 0:00:51]} 21. Nxe6 {[%clk 0:01:59]}  fxe6 {[%clk 0:00:39]} 22. Nd4 {[%clk 0:01:53]}  Rac8 {[%clk 0:00:32]} 23. g3 {[%clk 0:01:53]}  Ng6 {[%clk 0:00:31]} 24. Rf6 {[%clk 0:01:51]}  Nf8 {[%clk 0:00:18]} 25. Raf1 {[%clk 0:01:51]}  c5 {[%clk 0:00:17]} 26. Rf7+ {[%clk 0:01:48]}  Ke8 {[%clk 0:00:00]} 27. Nb5 {[%clk 0:01:47]} 1-0


[Site "https://www.chess.com"]

[Event "Titled Tuesday Blitz August 15 Late 2023"]
[White "Dwilewicz, Katarzyna"]
[Black "Navyblue1"]
[WhiteFideId "1148486"]
[WhiteElo "2401"]
[BlackElo "1994"]
[Result "0-1"]
[Round "2"]
[TimeControl "180+1"]
[Date "2023.08.15"]
[WhiteClock "0:00:15"]
[BlackClock "0:00:15"]
[Board "184"]

1. e4 {[%clk 0:03:00]}  c5 {[%clk 0:02:58]} 2. Nf3 {[%clk 0:03:00]}  d6 {[%clk 0:02:48]} 3. d4 {[%clk 0:02:56]}  cxd4 {[%clk 0:02:31]} 4. Nxd4 {[%clk 0:02:57]}  Nf6 {[%clk 0:02:30]} 5. Nc3 {[%clk 0:02:58]}  a6 {[%clk 0:02:27]} 6. h3 {[%clk 0:02:58]}  e5 {[%clk 0:02:23]} 7. Nde2 {[%clk 0:02:57]}  Be6 {[%clk 0:02:21]} 8. Bg5 {[%clk 0:02:56]}  Nbd7 {[%clk 0:02:20]} 9. Qd2 {[%clk 0:02:44]}  Qa5 {[%clk 0:02:10]} 10. Ng3 {[%clk 0:02:39]}  Rc8 {[%clk 0:02:01]} 11. Be2 {[%clk 0:02:31]}  Be7 {[%clk 0:01:57]} 12. O-O {[%clk 0:02:30]}  Qb4 {[%clk 0:01:28]} 13. Rab1 {[%clk 0:02:20]}  h6 {[%clk 0:01:21]} 14. a3 {[%clk 0:02:10]}  Qc5 {[%clk 0:01:13]} 15. Be3 {[%clk 0:02:05]}  Qc6 {[%clk 0:01:12]} 16. Rfd1 {[%clk 0:01:47]}  O-O {[%clk 0:01:09]} 17. Rbc1 {[%clk 0:01:44]}  Nb6 {[%clk 0:00:32]} 18. f3 {[%clk 0:01:20]}  d5 {[%clk 0:00:20]} 19. exd5 {[%clk 0:01:17]}  Nbxd5 {[%clk 0:00:19]} 20. Nxd5 {[%clk 0:01:16]}  Nxd5 {[%clk 0:00:18]} 21. Bf2 {[%clk 0:01:12]}  Rfd8 {[%clk 0:00:18]} 22. Qe1 {[%clk 0:01:06]}  Bc5 {[%clk 0:00:17]} 23. Bd3 {[%clk 0:01:03]}  Bxf2+ {[%clk 0:00:17]} 24. Qxf2 {[%clk 0:01:02]}  Nf4 {[%clk 0:00:17]} 25. Be4 {[%clk 0:01:00]}  Qc7 {[%clk 0:00:17]} 26. Nf5 {[%clk 0:00:45]}  Ng6 {[%clk 0:00:16]} 27. b3 {[%clk 0:00:36]}  Rxd1+ {[%clk 0:00:15]} 28. Rxd1 {[%clk 0:00:36]}  Ne7 {[%clk 0:00:15]} 29. Ne3 {[%clk 0:00:26]}  b5 {[%clk 0:00:13]} 30. h4 {[%clk 0:00:22]}  Qc5 {[%clk 0:00:13]} 31. Ng4 {[%clk 0:00:09]}  Qxf2+ {[%clk 0:00:12]} 32. Kxf2 {[%clk 0:00:08]}  f5 {[%clk 0:00:11]} 33. Nxe5 {[%clk 0:00:04]}  fxe4 {[%clk 0:00:11]} 34. fxe4 {[%clk 0:00:05]}  Bf7 {[%clk 0:00:11]} 35. Nxf7 {[%clk 0:00:05]}  Kxf7 {[%clk 0:00:10]} 36. Rd2 {[%clk 0:00:05]}  Ke6 {[%clk 0:00:10]} 37. Ke3 {[%clk 0:00:06]}  Rc3+ {[%clk 0:00:10]} 38. Kd4 {[%clk 0:00:06]}  Rc6 {[%clk 0:00:09]} 39. c4 {[%clk 0:00:06]}  Rd6+ {[%clk 0:00:09]} 40. Kc3 {[%clk 0:00:06]}  Rxd2 {[%clk 0:00:09]} 41. Kxd2 {[%clk 0:00:07]}  bxc4 {[%clk 0:00:09]} 42. bxc4 {[%clk 0:00:08]}  Nc6 {[%clk 0:00:10]} 43. Kc3 {[%clk 0:00:07]}  Ke5 {[%clk 0:00:11]} 44. g4 {[%clk 0:00:07]}  Kxe4 {[%clk 0:00:11]} 45. a4 {[%clk 0:00:07]}  a5 {[%clk 0:00:11]} 46. c5 {[%clk 0:00:07]}  Kd5 {[%clk 0:00:11]} 47. g5 {[%clk 0:00:08]}  hxg5 {[%clk 0:00:11]} 48. hxg5 {[%clk 0:00:08]}  Kxc5 {[%clk 0:00:12]} 49. g6 {[%clk 0:00:09]}  Ne5 {[%clk 0:00:11]} 50. Kb3 {[%clk 0:00:09]}  Nc4 {[%clk 0:00:11]} 51. Kc3 {[%clk 0:00:09]}  Nb6 {[%clk 0:00:12]} 52. Kd3 {[%clk 0:00:09]}  Nxa4 {[%clk 0:00:13]} 53. Ke4 {[%clk 0:00:10]}  Nb6 {[%clk 0:00:13]} 54. Ke5 {[%clk 0:00:10]}  Nd5 {[%clk 0:00:13]} 55. Ke6 {[%clk 0:00:11]}  a4 {[%clk 0:00:14]} 56. Kf7 {[%clk 0:00:11]}  a3 {[%clk 0:00:15]} 57. Kxg7 {[%clk 0:00:12]}  a2 {[%clk 0:00:16]} 58. Kf7 {[%clk 0:00:11]}  a1=Q {[%clk 0:00:16]} 59. g7 {[%clk 0:00:12]}  Qf1+ {[%clk 0:00:14]} 60. Ke8 {[%clk 0:00:11]}  Qe1+ {[%clk 0:00:14]} 61. Kf7 {[%clk 0:00:12]}  Qf2+ {[%clk 0:00:14]} 62. Ke8 {[%clk 0:00:12]}  Qe3+ {[%clk 0:00:14]} 63. Kf7 {[%clk 0:00:12]}  Qf4+ {[%clk 0:00:15]} 64. Ke8 {[%clk 0:00:13]}  Qe5+ {[%clk 0:00:15]} 65. Kf7 {[%clk 0:00:14]}  Qf6+ {[%clk 0:00:15]} 66. Kg8 {[%clk 0:00:14]}  Ne7+ {[%clk 0:00:15]} 67. Kh7 {[%clk 0:00:15]}  Qh4# {[%clk 0:00:15]} 0-1


[Site "https://www.chess.com"]